bitfinex/quotes_SOLUSD_20250625
["timestamp","ask_amount","ask_price","bid_price","bid_amount"]
[1750840961284,6.87474219,145.46,145.41,107.34964886]
[1750840961482,3.56455219,145.43,145.41,107.34964886]
[1750840961681,3.56455219,145.42,145.41,107.34964886]
[1750840962687,3.56455219,145.42,145.41,88.7]
[1750840964804,10.44118539,145.42,145.41,88.7]
[1750840965103,10.44118539,145.42,145.38,6.1]
[1750840965268,3.56455219,145.39,145.38,6.1]
[1750840977792,6.8766332,145.42,145.38,12.97851523]
[1750840978296,3.56455219,145.39,145.38,12.97851523]
[1750840979806,32.4097,145.44,145.39,18.64964886]
[1750840980109,3.56455219,145.42,145.39,135.48964886]
[1750840980480,3.56455219,145.44,145.39,50.35420105]
[1750840980678,3.56455219,145.43,145.39,50.35420105]
[1750840980884,3.56455219,145.43,145.39,46.78964886]
[1750840981127,3.56455219,145.43,145.39,50.35420105]
[1750840982401,3.56455219,145.43,145.4,6.87757909]
[1750840982603,3.56455219,145.43,145.42,18.64964886]
[1750840985584,3.56455219,145.43,145.42,25.52628206]
[1750840985880,3.56455219,145.44,145.42,25.52628206]
[1750840986634,3.56455219,145.43,145.42,25.52628206]
[1750840987214,3.56455219,145.43,145.42,114.22628206]
[1750840987410,6.87474762,145.46,145.42,114.22628206]
[1750840987706,3.56455219,145.43,145.42,114.22628206]
[1750840989308,3.56455219,145.44,145.42,114.22628206]
[1750840991393,3.56455219,145.44,145.43,6.06]
[1750840996530,6.87478393,145.46,145.43,6.06]
[1750840996732,3.56455219,145.44,145.43,6.06]
[1750841001352,6.87486848,145.46,145.43,6.06]
[1750841001634,26.0,145.47,145.43,6.06]
[1750841001635,3.56455219,145.44,145.43,24.70964886]
[1750841002140,3.56455219,145.44,145.43,113.40964886]
[1750841009439,3.56455219,145.44,145.43,94.76]
[1750841013740,3.56455219,145.44,145.43,6.06]
[1750841020136,6.87511332,145.46,145.43,6.06]
[1750841020444,3.56455219,145.44,145.43,6.06]
[1750841021244,3.56455219,145.45,145.43,101.63600128]
[1750841021635,3.56455219,145.44,145.43,120.28565014]
[1750841022138,3.56455219,145.44,145.43,113.40964886]
[1750841022535,26.0,145.47,145.43,120.28579466]
[1750841022734,65.47929825,145.68,145.46,9.79475219]
[1750841022735,3.56455219,145.55,145.46,9.79475219]
[1750841022926,3.56455219,145.55,145.51,18.64964886]
[1750841023131,6.86891422,145.59,145.53,18.64964886]
[1750841023326,26.0,145.56,145.53,22.21420105]
[1750841023725,26.0,145.56,145.54,2.56700475]
[1750841023929,6.87001923,145.56,145.55,2.56700475]
[1750841024126,10.43457142,145.56,145.53,2.56700475]
[1750841024340,10.43457142,145.56,145.54,2.56700475]
[1750841024537,10.43457142,145.56,145.55,2.56700475]
[1750841024742,10.43457142,145.56,145.53,2.56700475]
[1750841024950,10.43457142,145.56,145.54,2.56700475]
[1750841025149,26.0,145.53,145.52,6.04]
[1750841025346,26.0,145.53,145.52,8.60811974]
[1750841025347,29.56455219,145.53,145.52,8.60811974]
[1750841025648,29.56455219,145.53,145.52,13.74439636]
[1750841026343,50.69419639,145.53,145.52,11.17627662]
[1750841026941,67.87278499,145.53,145.48,6.04]
[1750841027144,3.56455219,145.49,145.48,6.04]
[1750841027339,3.56455219,145.49,145.48,8.60648968]
[1750841027941,3.56455219,145.49,145.48,2.56648968]
[1750841028144,29.56455219,145.49,145.44,6.04]
[1750841028332,5.56911209,145.45,145.44,6.04]
[1750841029844,26.0,145.45,145.44,6.04]
[1750841030049,31.56911209,145.45,145.44,6.04]
[1750841030561,38.44432694,145.45,145.44,6.04]
[1750841035450,31.56911209,145.45,145.44,6.04]
[1750841036238,5.56911209,145.45,145.44,6.04]
[1750841037340,26.0,145.48,145.44,6.04]
[1750841037554,26.0,145.48,145.44,12.91560537]
[1750841037555,5.56911209,145.46,145.44,12.91560537]
[1750841037746,5.56911209,145.45,145.44,12.91560537]
[1750841037937,5.56911209,145.45,145.44,6.04]
[1750841042469,12.44432694,145.45,145.44,6.04]
[1750841044781,38.44432694,145.45,145.44,6.04]
[1750841044947,44.01343903,145.45,145.44,6.04]
[1750841050252,31.56911209,145.45,145.44,6.04]
[1750841052275,26.0,145.45,145.44,6.04]
[1750841052581,5.56911209,145.45,145.44,6.04]
[1750841054078,32.87401582,145.48,145.45,18.64964886]
[1750841054079,5.56911209,145.46,145.45,18.64964886]
[1750841054463,5.56911209,145.46,145.44,12.9153838]
[1750841056074,5.56911209,145.47,145.44,12.9153838]
[1750841056267,31.56911209,145.48,145.44,35.67371481]
[1750841056467,5.56911209,145.49,145.45,52.29876095]
[1750841057182,5.56911209,145.48,145.45,46.72964886]
[1750841058189,5.56911209,145.48,145.47,18.64964886]
[1750841059203,5.56911209,145.48,145.47,25.52391846]
[1750841059782,38.44124755,145.52,145.47,25.52391846]
[1750841059992,5.56911209,145.48,145.47,25.52391846]
[1750841060976,38.44124755,145.52,145.47,25.52391846]
[1750841061289,5.56911209,145.48,145.47,25.52391846]
[1750841061468,5.56911209,145.49,145.47,25.52391846]
[1750841063088,5.56911209,145.48,145.47,25.52391846]
[1750841065184,5.56911209,145.48,145.46,6.87453326]
[1750841065389,5.56911209,145.47,145.46,25.52418212]
[1750841065591,5.56911209,145.47,145.46,18.64964886]
[1750841066878,5.56911209,145.47,145.45,123.65510118]
[1750841067080,6.87342309,145.49,145.45,123.65510118]
[1750841067081,5.56911209,145.46,145.45,135.42964886]
[1750841067270,5.56911209,145.46,145.44,12.91547544]
[1750841067471,5.56911209,145.45,145.44,18.64964886]
[1750841067671,5.56911209,145.45,145.44,24.66964886]
[1750841068474,5.56911209,145.45,145.44,6.02]
[1750841069690,5.56911209,145.45,145.44,12.89568756]
[1750841069892,5.56911209,145.45,145.44,6.02]
[1750841083808,18.01343903,145.45,145.44,6.02]
[1750841084122,12.44432694,145.45,145.44,6.02]
[1750841086313,5.56911209,145.45,145.44,6.02]
[1750841090084,12.44432694,145.45,145.44,6.02]
[1750841090491,18.01343903,145.45,145.44,6.02]
[1750841091099,12.44432694,145.45,145.44,6.02]
[1750841091502,6.87521485,145.45,145.44,6.02]
[1750841091716,12.44432694,145.45,145.44,6.02]
[1750841091896,18.01343903,145.45,145.44,6.02]
[1750841092098,26.0,145.42,145.4,88.7]
[1750841092415,5.56911209,145.41,145.39,6.02]
[1750841092590,5.56911209,145.4,145.39,6.02]
[1750841097121,12.44669118,145.4,145.39,6.02]
[1750841098902,5.56911209,145.4,145.39,6.02]
[1750841100614,26.0,145.37,145.35,94.72]
[1750841100817,26.0,145.37,145.35,6.02]
[1750841100818,5.56911209,145.36,145.35,6.02]
[1750841103727,12.44858374,145.36,145.35,6.02]
[1750841103912,18.01769583,145.36,145.35,6.02]
[1750841104432,12.44858374,145.36,145.35,6.02]
[1750841104820,5.56911209,145.36,145.35,6.02]
[1750841105728,5.56911209,145.36,145.35,12.89994496]
[1750841105916,5.56911209,145.36,145.35,6.02]
[1750841115007,12.44858374,145.36,145.35,6.02]
[1750841115218,5.56911209,145.36,145.35,6.02]
[1750841121030,12.44858374,145.36,145.35,6.02]
[1750841121343,18.01769583,145.36,145.35,6.02]
[1750841121523,12.44858374,145.36,145.35,6.02]
[1750841121729,5.56911209,145.37,145.35,24.66964886]
[1750841121925,5.56911209,145.37,145.35,31.54959382]
[1750841122241,5.56911209,145.37,145.35,24.66964886]
[1750841122442,5.56911209,145.36,145.35,6.02]
[1750841128540,26.0,145.4,145.35,12.89994496]
[1750841128741,6.8766332,145.42,145.36,24.21876095]
[1750841128945,5.56911209,145.44,145.38,18.64964886]
[1750841128946,5.56911209,145.41,145.38,18.64964886]
[1750841129332,5.56911209,145.41,145.37,18.64964886]
[1750841129532,5.56911209,145.41,145.38,6.87852524]
[1750841129938,5.56911209,145.42,145.38,12.44763733]
[1750841130628,5.56911209,145.44,145.41,18.64964886]
[1750841130829,5.56911209,145.44,145.41,24.66964886]
[1750841131237,5.56911209,145.43,145.41,24.66964886]
[1750841132951,5.56911209,145.42,145.41,6.02]
[1750841133456,5.56911209,145.43,145.41,6.02]
[1750841133754,5.56911209,145.45,145.41,18.46612575]
[1750841133947,5.56911209,145.43,145.41,12.89701366]
[1750841134732,5.56911209,145.44,145.41,12.89701366]
[1750841134936,5.56911209,145.44,145.41,101.59701366]
[1750841135151,5.56911209,145.44,145.42,18.64964886]
[1750841135856,5.56911209,145.43,145.41,94.72]
[1750841136157,31.56911209,145.42,145.41,94.72]
[1750841136942,31.56911209,145.42,145.41,6.02]
[1750841137149,38.44574529,145.42,145.41,6.02]
[1750841144745,32.8766332,145.42,145.41,6.02]
[1750841144952,38.44574529,145.42,145.41,6.02]
[1750841149772,31.56911209,145.42,145.41,6.02]
[1750841150081,26.0,145.42,145.41,6.02]
[1750841150262,5.56911209,145.43,145.41,6.02]
[1750841151074,5.56911209,145.43,145.41,12.89708056]
[1750841155679,5.56911209,145.43,145.41,101.59708056]
[1750841155882,5.56911209,145.42,145.41,113.36964886]
[1750841156985,5.56911209,145.42,145.41,120.24675497]
[1750841157184,5.56911209,145.43,145.41,120.24675497]
[1750841159382,5.56911209,145.42,145.41,113.36964886]
[1750841160688,6.87534866,145.45,145.41,113.36964886]
[1750841160886,5.56911209,145.42,145.41,113.36964886]
[1750841161372,6.87410805,145.48,145.41,120.24675497]
[1750841161558,5.56911209,145.44,145.41,120.24675497]
[1750841161883,26.0,145.45,145.43,18.64964886]
[1750841162086,5.56911209,145.44,145.43,18.64964886]
[1750841162675,5.56911209,145.44,145.41,101.59710611]
[1750841162882,5.56911209,145.43,145.42,18.64964886]
[1750841163377,5.56911209,145.44,145.42,25.5259334]
[1750841163687,5.56911209,145.45,145.42,25.5259334]
[1750841163870,5.56911209,145.45,145.42,114.2259334]
[1750841164987,5.56911209,145.47,145.42,147.83504549]
[1750841165367,5.56911209,145.46,145.42,147.83504549]
[1750841165780,5.56911209,145.46,145.42,165.02662849]
[1750841165977,5.56911209,145.47,145.42,159.4575164]
[1750841166185,5.56911209,145.44,145.42,107.34964886]
[1750841166371,5.56911209,145.43,145.41,94.7]
[1750841166574,5.56911209,145.42,145.41,113.34964886]
[1750841166888,5.56911209,145.45,145.43,6.87616035]
[1750841167076,5.56911209,145.45,145.43,95.57616035]
[1750841168194,26.0,145.47,145.43,95.57616035]
[1750841168369,5.56911209,145.45,145.43,95.57616035]
[1750841168570,5.56911209,145.44,145.43,88.7]
[1750841169702,32.87495207,145.46,145.43,88.7]
[1750841169995,5.56911209,145.44,145.43,88.7]
[1750841170170,6.87495207,145.46,145.43,88.7]
[1750841170371,5.56911209,145.44,145.43,88.7]
[1750841170596,5.56911209,145.44,145.42,18.64964886]
[1750841170797,26.0,145.46,145.42,18.64964886]
[1750841170798,5.56911209,145.43,145.42,18.64964886]
[1750841171298,5.56911209,145.43,145.42,25.52628206]
[1750841175300,26.0,145.46,145.42,25.52628206]
[1750841175596,5.56911209,145.43,145.42,25.52628206]
[1750841176409,5.56911209,145.43,145.42,114.22628206]
[1750841176702,26.0,145.46,145.42,114.22628206]
[1750841176703,5.56911209,145.44,145.42,114.22628206]
[1750841177399,5.56911209,145.43,145.42,114.22628206]
[1750841180108,5.56911209,145.43,145.42,88.7]
[1750841181616,32.87481443,145.46,145.42,88.7]
[1750841181784,5.56911209,145.43,145.42,88.7]
[1750841182482,5.56911209,145.43,145.41,101.57686333]
[1750841182702,5.56911209,145.42,145.41,113.34964886]
[1750841182890,5.56911209,145.42,145.41,94.7]
[1750841184106,5.56911209,145.42,145.41,6.0]
[1750841184310,12.44574529,145.42,145.41,6.0]
[1750841187012,26.0,145.39,145.32,8.1502]
[1750841187233,26.0,145.39,145.35,6.0]
[1750841187508,5.56911209,145.36,145.35,6.0]
[1750841188325,18.01769583,145.36,145.35,6.0]
[1750841191616,11.13822418,145.36,145.35,6.0]
[1750841191820,26.0,145.36,145.35,6.0]
[1750841191996,31.56911209,145.36,145.35,6.0]
[1750841192411,5.56911209,145.37,145.35,31.52959382]
[1750841192597,5.56911209,145.38,145.36,18.64964886]
[1750841192799,5.56911209,145.38,145.37,6.87899841]
[1750841193305,5.56911209,145.4,145.37,6.87899841]
[1750841194348,5.56911209,145.41,145.37,12.4481105]
[1750841194495,5.56911209,145.41,145.37,6.87899841]
[1750841194813,5.56911209,145.41,145.37,29.64560654]
[1750841195207,5.56911209,145.39,145.37,6.87899841]
[1750841195504,5.56911209,145.44,145.37,6.87899841]
[1750841195505,5.56911209,145.38,145.37,6.87899841]
[1750841196816,5.56911209,145.39,145.37,6.87899841]
[1750841198427,32.8765902,145.43,145.37,6.87899841]
[1750841198728,5.56911209,145.39,145.37,6.87899841]
[1750841200023,26.0,145.43,145.35,34.04]
[1750841200024,5.56911209,145.38,145.35,34.04]
[1750841200204,5.56911209,145.36,145.35,6.0]
[1750841203429,18.01769583,145.36,145.32,6.0]
[1750841203738,5.56911209,145.33,145.32,6.0]
[1750841204109,6.87947165,145.36,145.32,6.0]
[1750841204313,5.56911209,145.36,145.33,18.64964886]
[1750841205244,26.0,145.39,145.33,18.64964886]
[1750841205245,32.87823521,145.39,145.33,18.64964886]
[1750841205539,5.56911209,145.36,145.33,107.34964886]
[1750841205732,5.56911209,145.37,145.33,107.34964886]
[1750841206234,5.56911209,145.36,145.33,107.34964886]
[1750841206538,5.56911209,145.36,145.33,114.23011781]
[1750841209115,5.56911209,145.35,145.33,25.53011781]
[1750841210440,5.56911209,145.34,145.32,12.88121358]
[1750841212248,32.87929919,145.37,145.32,12.88121358]
[1750841212427,5.56911209,145.34,145.32,12.88121358]
[1750841212622,5.56911209,145.35,145.32,12.88121358]
[1750841212838,5.56911209,145.35,145.33,18.64964886]
[1750841213030,5.56911209,145.36,145.33,18.64964886]
[1750841213416,5.56911209,145.37,145.33,18.64964886]
[1750841213642,5.56911209,145.36,145.33,18.64964886]
[1750841213945,5.56911209,145.36,145.34,6.88041832]
[1750841217216,6.87859812,145.38,145.34,6.88041832]
[1750841217217,5.56911209,145.35,145.34,25.53006718]
[1750841217838,5.56911209,145.35,145.34,114.23006718]
[1750841218221,5.56911209,145.36,145.34,114.23006718]
[1750841219136,5.56911209,145.35,145.34,114.23006718]
[1750841219939,6.87805213,145.39,145.34,114.23006718]
[1750841220118,5.56911209,145.35,145.34,114.23006718]
[1750841220518,5.56911209,145.36,145.34,114.23006718]
[1750841221522,26.0,145.4,145.35,18.64964886]
[1750841221718,49.78670162,145.44,145.37,24.21876095]
[1750841221719,5.56911209,145.41,145.37,24.21876095]
[1750841221944,5.56911209,145.42,145.39,18.64964886]
[1750841222543,5.56911209,145.41,145.38,6.0]
[1750841222748,5.56911209,145.39,145.38,6.0]
[1750841223326,5.56911209,145.4,145.38,12.87852524]
[1750841224041,5.56911209,145.41,145.39,18.64964886]
[1750841224547,5.56911209,145.4,145.39,18.64964886]
[1750841224934,5.56911209,145.4,145.38,6.0]
[1750841225133,5.56911209,145.39,145.38,6.0]
[1750841227947,12.44716422,145.39,145.38,6.0]
[1750841229359,5.56911209,145.39,145.38,6.0]
[1750841237458,6.8772221,145.41,145.38,6.0]
[1750841237655,5.56911209,145.39,145.38,6.0]
[1750841240063,6.8772221,145.41,145.38,6.0]
[1750841240267,5.56911209,145.39,145.38,6.0]
[1750841241164,26.0,145.42,145.38,6.0]
[1750841241165,26.0,145.42,145.38,12.87852524]
[1750841241338,5.56911209,145.39,145.38,24.64964886]
[1750841241770,5.56911209,145.39,145.38,6.0]
[1750841242640,5.56911209,145.4,145.38,12.8784753]
[1750841243557,25.36011543,145.45,145.39,18.64964886]
[1750841243558,8.172,145.45,145.39,18.64964886]
[1750841243757,5.56911209,145.43,145.39,107.34964886]
[1750841243948,5.56911209,145.4,145.39,107.34964886]
[1750841244556,5.56911209,145.41,145.39,107.34964886]
[1750841244967,5.56911209,145.41,145.39,114.22763586]
[1750841245463,5.56911209,145.4,145.39,88.7]
[1750841245647,5.56911209,145.4,145.38,6.0]
[1750841245843,5.56911209,145.39,145.38,6.0]
[1750841246248,31.56911209,145.39,145.38,6.0]
[1750841246466,31.56911209,145.39,145.33,6.0]
[1750841246766,5.56911209,145.34,145.33,24.64964886]
[1750841247171,5.56911209,145.34,145.33,31.53054062]
[1750841248365,5.56911209,145.34,145.33,24.64964886]
[1750841248568,5.56911209,145.34,145.33,6.0]
[1750841251284,26.0,145.34,145.33,6.0]
[1750841251459,5.56911209,145.34,145.33,6.0]
[1750841252778,5.56911209,145.35,145.33,12.88089176]
[1750841253354,5.56911209,145.37,145.34,18.64964886]
[1750841255078,5.56911209,145.37,145.34,25.52967549]
[1750841255691,5.56911209,145.35,145.34,18.64964886]
[1750841255978,5.56911209,145.35,145.33,6.0]
[1750841256179,5.56911209,145.34,145.33,6.0]
[1750841256379,5.56911209,145.34,145.31,18.64964886]
[1750841256553,5.56911209,145.36,145.32,6.0]
[1750841256759,5.56911209,145.33,145.32,6.0]
[1750841258784,26.0,145.29,145.27,1.4518377]
[1750841258969,26.0,145.25,145.14,6.8898994]
[1750841259170,5.56911209,145.21,145.16,10.77986791]
[1750841259492,5.56911209,145.21,145.16,7.18691209]
[1750841259692,5.56911209,145.22,145.18,18.64964886]
[1750841259869,5.56911209,145.23,145.19,6.0]
[1750841260188,26.0,145.27,145.19,6.0]
[1750841260395,5.56911209,145.21,145.19,6.0]
[1750841260864,6.88550346,145.24,145.2,18.64964886]
[1750841261064,5.56911209,145.21,145.2,18.64964886]
[1750841262292,26.0,145.25,145.2,18.64964886]
[1750841262500,5.56911209,145.22,145.2,18.64964886]
[1750841263005,26.0,145.27,145.22,18.64964886]
[1750841263172,5.56911209,145.24,145.22,18.64964886]
[1750841264088,5.56911209,145.24,145.22,6.88597425]
[1750841264286,5.56911209,145.23,145.21,6.88638978]
[1750841264792,5.56911209,145.22,145.2,25.53655122]
[1750841265099,5.56911209,145.21,145.19,6.0]
[1750841265268,5.56911209,145.2,145.19,24.64964886]
[1750841266884,5.56911209,145.2,145.19,6.0]
[1750841268090,12.45616443,145.2,145.19,6.0]
[1750841268390,24.41357652,145.2,145.14,18.64964886]
[1750841268697,5.56911209,145.15,145.13,12.8902324]
[1750841268891,5.56911209,145.14,145.13,12.8902324]
[1750841269103,5.56911209,145.14,145.13,6.0]
[1750841270286,26.0,145.18,145.13,6.0]
[1750841270493,5.56911209,145.14,145.13,6.0]
[1750841270690,26.0,145.18,145.14,18.64964886]
[1750841270889,5.56911209,145.17,145.14,18.64964886]
[1750841271083,5.56911209,145.18,145.14,18.64964886]
[1750841271280,5.56911209,145.17,145.14,18.64964886]
[1750841271679,6.2483,145.24,145.17,18.64964886]
[1750841271901,5.56911209,145.21,145.17,24.21876095]
[1750841272097,5.56911209,145.2,145.16,18.64964886]
[1750841272406,9.31180394,145.2,145.16,18.64964886]
[1750841272899,9.31180394,145.19,145.17,6.88847558]
[1750841273106,9.31180394,145.18,145.13,6.89037414]
[1750841273283,9.31180394,145.16,145.14,18.64964886]
[1750841273481,9.31180394,145.15,145.11,6.89132382]
[1750841273794,9.31180394,145.2,145.09,25.54192262]
[1750841273795,32.5276,145.17,145.09,25.54192262]
[1750841273969,32.5276,145.17,145.08,12.8925964]
[1750841274173,9.31180394,145.11,145.08,12.8925964]
[1750841274592,9.31180394,145.14,145.09,9.31180394]
[1750841274792,32.5276,145.17,145.11,18.64964886]
[1750841275093,9.31180394,145.14,145.11,18.64964886]
[1750841275394,26.0,145.17,145.11,18.64964886]
[1750841275576,9.31180394,145.14,145.11,18.64964886]
[1750841275974,9.31180394,145.15,145.12,6.89084895]
[1750841277192,9.31180394,145.13,145.1,6.89179875]
[1750841277505,9.31180394,145.11,145.07,6.89322396]
[1750841277688,9.31180394,145.11,145.09,6.0]
[1750841278389,50.10975686,145.17,145.09,6.0]
[1750841278583,9.31180394,145.11,145.09,6.0]
[1750841279188,9.31180394,145.1,145.09,6.0]
[1750841279395,6.0553,145.12,145.09,6.0]
[1750841279711,9.31180394,145.1,145.09,6.0]
[1750841280577,6.0553,145.12,145.09,6.0]
[1750841280777,9.31180394,145.1,145.09,6.0]
[1750841281195,9.31180394,145.11,145.09,12.89224869]
[1750841281393,9.31180394,145.1,145.09,6.0]
[1750841281977,9.31180394,145.1,145.09,12.89227376]
[1750841282179,9.31180394,145.1,145.09,6.0]
[1750841283899,26.0,145.07,145.02,8.75030818]
[1750841284078,9.31180394,145.03,145.01,57.81598497]
[1750841284699,32.8932269,145.07,145.01,57.81598497]
[1750841284902,9.31180394,145.04,145.01,57.81598497]
[1750841285117,9.31180394,145.03,145.01,57.81598497]
[1750841285412,9.31180394,145.04,145.01,57.81598497]
[1750841286203,39.15519542,145.09,145.01,86.53598497]
[1750841286513,9.31180394,145.06,145.03,6.89512514]
[1750841288199,9.31180394,145.07,145.03,6.89512514]
[1750841288708,9.31180394,145.06,145.03,6.89512514]
[1750841289699,9.22085853,145.06,145.03,6.89512514]
[1750841290998,9.31180394,145.05,145.02,25.54510981]
[1750841291308,26.0,145.06,145.02,6.89546095]
[1750841291501,35.31180394,145.06,145.02,6.89546095]
[1750841291706,9.31180394,145.06,145.02,34.85691375]
[1750841291889,9.31180394,145.07,145.02,34.85691375]
[1750841292391,26.0,145.1,145.03,9.31180394]
[1750841292902,9.31180394,145.08,145.03,9.31180394]
[1750841293696,9.31180394,145.08,145.04,18.64964886]
[1750841294503,9.31180394,145.08,145.05,6.89417442]
[1750841295408,32.89183792,145.1,145.05,6.89417442]
[1750841295606,9.31180394,145.06,145.02,1.6226]
[1750841295790,9.31180394,145.05,145.02,18.64964886]
[1750841296409,9.31180394,145.05,145.02,25.54505953]
[1750841297196,6.8939723,145.06,145.01,57.81587356]
[1750841297508,52.54147267,145.1,145.01,57.81587356]
[1750841297509,9.31180394,145.04,145.01,57.81587356]
[1750841298697,9.31180394,145.04,145.01,50.92]
[1750841299011,9.31180394,145.04,145.01,57.81606118]
[1750841299312,9.31180394,145.04,145.01,50.92]
[1750841299518,9.31180394,145.04,145.01,57.81602742]
[1750841299894,9.31180394,145.04,145.01,50.92]
[1750841300096,9.31180394,145.03,145.01,50.92]
[1750841300312,6.89389535,145.06,145.01,57.81604017]
[1750841300505,9.31180394,145.05,145.01,57.81604017]
[1750841300708,32.4107,145.07,145.01,57.81604017]
[1750841301098,9.31180394,145.05,145.01,57.81604017]
[1750841301406,32.4107,145.07,145.01,67.12784411]
[1750841301712,9.31180394,145.04,145.01,57.81604017]
[1750841302089,9.31180394,145.03,145.01,50.92]
[1750841302394,39.30400244,145.07,145.01,57.81598988]
[1750841302616,9.31180394,145.05,145.01,57.81598988]
[1750841303314,9.31180394,145.04,145.01,57.81598988]
[1750841303702,32.4107,145.07,145.02,18.64964886]
[1750841303890,9.31180394,145.07,145.02,27.9614528]
[1750841304293,31.5972155,145.08,145.02,24.24686436]
[1750841304814,31.5972155,145.08,145.03,6.89512514]
[1750841305400,38.49006252,145.08,145.03,6.89512514]
[1750841306417,38.49002199,145.08,145.03,6.89512514]
[1750841307295,31.5972155,145.08,145.03,6.89512514]
[1750841308097,31.5972155,145.08,145.03,12.49234064]
[1750841308420,31.5972155,145.08,145.03,6.89512514]
[1750841309131,26.0,145.08,145.03,6.89512514]
[1750841309499,31.5972155,145.08,145.03,6.89512514]
[1750841309701,5.5972155,145.09,145.04,18.64964886]
[1750841309896,5.5972155,145.09,145.04,47.48964886]
[1750841310204,5.5972155,145.08,145.04,47.48964886]
[1750841311105,5.5972155,145.08,145.04,28.84]
[1750841311309,5.5972155,145.09,145.04,28.84]
[1750841311517,6.6054,145.16,145.05,20.28014886]
[1750841311700,5.5972155,145.13,145.08,5.5972155]
[1750841311899,31.5972155,145.13,145.09,12.0572155]
[1750841312212,5.5972155,145.13,145.09,6.46]
[1750841312412,31.5972155,145.13,145.09,6.46]
[1750841312732,5.5972155,145.13,145.09,13.3518465]
[1750841313227,26.0,145.12,145.09,13.3518465]
[1750841314031,31.5972155,145.12,145.09,6.46]
[1750841315108,31.5972155,145.12,145.09,13.35220332]
[1750841315725,26.0,145.12,145.09,13.35220332]
[1750841316701,31.5972155,145.12,145.09,13.35220332]
[1750841317403,31.5972155,145.12,145.09,6.46]
[1750841317833,26.0,145.12,145.09,13.35217484]
[1750841320833,26.0,145.12,145.09,18.94939034]
[1750841321213,5.5972155,145.13,145.09,18.94939034]
[1750841321214,5.5972155,145.13,145.09,13.35217484]
[1750841322135,5.5972155,145.12,145.09,13.35217484]
[1750841322921,5.5972155,145.12,145.09,6.46]
[1750841323130,5.5972155,145.11,145.09,6.46]
[1750841323327,5.5972155,145.1,145.09,6.46]
[1750841323633,5.5972155,145.11,145.09,6.46]
[1750841325432,12.4886373,145.11,145.09,6.46]
[1750841325634,5.5972155,145.1,145.09,6.46]
[1750841326415,6.8914218,145.11,145.09,6.46]
[1750841326617,5.5972155,145.1,145.09,6.46]
[1750841327140,5.5972155,145.1,145.02,6.8956006]
[1750841327141,12.48901443,145.1,145.02,6.8956006]
[1750841327333,5.5972155,145.06,145.04,6.44]
[1750841328218,6.1743,145.1,145.04,6.44]
[1750841328424,26.0,145.11,145.05,52.94686436]
[1750841328751,26.0,145.11,145.07,18.64964886]
[1750841328926,12.4882219,145.12,145.07,18.64964886]
[1750841329245,12.4882219,145.12,145.07,24.24686436]
[1750841329740,12.4882219,145.12,145.07,31.13969331]
[1750841330333,5.5972155,145.1,145.05,35.59372584]
[1750841330517,5.5972155,145.09,145.06,18.64964886]
[1750841330835,12.42202965,145.15,145.09,18.64964886]
[1750841331031,12.42202965,145.15,145.09,52.98686436]
[1750841331032,31.5972155,145.14,145.09,52.98686436]
[1750841331231,31.5972155,145.14,145.1,6.44]
[1750841331436,5.5972155,145.15,145.1,12.0372155]
[1750841331619,5.5972155,145.14,145.1,6.44]
[1750841331950,12.48717221,145.14,145.1,6.44]
[1750841332612,5.5972155,145.13,145.1,6.44]
[1750841332938,5.5972155,145.12,145.1,6.44]
[1750841333347,12.48717221,145.14,145.1,6.44]
[1750841333531,32.8896246,145.15,145.1,13.3317035]
[1750841333725,5.5972155,145.14,145.1,13.3317035]
[1750841336140,38.48671178,145.15,145.1,18.928919]
[1750841337058,31.5972155,145.15,145.1,20.507819]
[1750841338353,5.5972155,145.14,145.1,14.9106035]
[1750841338529,5.5972155,145.14,145.1,20.507819]
[1750841338929,31.5972155,145.15,145.1,20.507819]
[1750841339961,26.0,145.15,145.11,5.5972155]
[1750841340158,31.5972155,145.15,145.11,12.4884154]
[1750841340757,38.48669375,145.15,145.1,20.50785756]
[1750841340948,5.5972155,145.14,145.1,20.50785756]
[1750841341145,32.88947825,145.15,145.1,20.50785756]
[1750841341340,26.0,145.15,145.11,24.24686436]
[1750841341649,5.5972155,145.17,145.12,5.5972155]
[1750841342142,5.5972155,145.16,145.12,12.48764927]
[1750841342745,5.5972155,145.17,145.12,12.48764927]
[1750841342943,32.88817537,145.18,145.1,8.0189]
[1750841342944,26.0,145.15,145.1,8.0189]
[1750841343249,5.5972155,145.13,145.1,6.44]